fUSD/lending_fUSD_20250607
["ID","MTS","AMOUNT","RATE_DAILY","PERIOD"]
[364854589,1749275483375,-1105.102924,0.00028054,7]
[364854590,1749275483385,-1813.57,0.00028054,5]
[364854591,1749275483394,-1367.55,0.00028054,5]
[364854592,1749275483404,-480.0,0.00028054,5]
[364854593,1749275483415,-1078.29,0.00028054,5]
[364854594,1749275483425,-480.0,0.00028054,5]
[364854595,1749275483435,-2982.07,0.00028054,5]
[364854596,1749275483444,-7852.96,0.00028054,5]
[364854597,1749275483454,-1926.65,0.00028054,5]
[364854598,1749275483464,-480.0,0.00028054,5]
[364854599,1749275483474,-1720.22,0.00028054,5]
[364854600,1749275483484,-596.48,0.00028054,5]
[364854601,1749275483493,-1287.03,0.00028054,5]
[364854602,1749275483503,-3698.26,0.00028054,5]
[364854603,1749275483514,-647.73,0.00028054,5]
[364854604,1749275483523,-480.0,0.00028054,5]
[364854605,1749275483533,-561.51,0.00028054,5]
[364854606,1749275483544,-480.0,0.00028054,5]
[364854607,1749275483554,-480.0,0.00028054,5]
[364854608,1749275483564,-480.0,0.00028054,5]
[364854609,1749275483574,-1325.93,0.00028054,5]
[364854610,1749275483583,-1912.4,0.00028054,2]
[364854611,1749275483593,-3481.74,0.00028054,5]
[364854612,1749275483603,-1909.93,0.00028054,5]
[364854613,1749275483613,-1205.05,0.00028054,5]
[364854614,1749275483622,-1000.0,0.00028054,5]
[364854615,1749275483631,-151.0,0.00028054,7]
[364854616,1749275483640,-513.61979939,0.00028054,5]
[364854617,1749275483650,-569.38,0.00028054,5]
[364854618,1749275483659,-513.26024752,0.00028054,5]
[364854619,1749275483668,-480.0,0.00028054,5]
[364854620,1749275483678,-480.0,0.00028054,5]
[364854621,1749275483687,-480.0,0.00028054,5]
[364854622,1749275483697,-480.0,0.00028054,5]
[364854623,1749275483706,-769.38,0.00028054,5]
[364854624,1749275483716,-63032.49,0.00028054,5]
[364854625,1749275483725,-846.16,0.00028054,5]
[364854626,1749275483735,-480.0,0.00028054,5]
[364854627,1749275483744,-480.0,0.00028054,5]
[364854628,1749275483754,-2534.32,0.00028054,5]
[364854629,1749275483763,-480.0,0.00028054,5]
[364854630,1749275483773,-480.0,0.00028054,5]
[364854631,1749275483783,-3160.19,0.00028054,5]
[364854632,1749275483793,-755.58,0.00028054,5]
[364854633,1749275483803,-496.05422847,0.00028054,5]
[364854634,1749275483812,-1597.05,0.00028054,5]
[364854635,1749275483822,-5855.72,0.00028054,5]
[364854636,1749275483831,-480.0,0.00028054,5]
[364854637,1749275483840,-11381.49,0.00028054,5]
[364854638,1749275483849,-569.97071989,0.00028054,5]
[364854639,1749275483858,-1244.3,0.00028054,5]
[364854640,1749275483867,-481.70728185,0.00028054,5]
[364854641,1749275483876,-480.0,0.00028054,5]
[364854642,1749275483885,-1738.26,0.00028054,5]
[364854643,1749275483895,-3704.48,0.00028054,5]
[364854644,1749275483903,-503.78442438,0.00028054,5]
[364854645,1749275483913,-480.0,0.00028054,5]
[364854646,1749275483922,-1045.76,0.00028054,5]
[364854647,1749275483932,-735.86,0.00028054,5]
[364854648,1749275483942,-480.0,0.00028054,5]
[364854649,1749275483951,-1516.04,0.00028054,5]
[364854650,1749275483961,-1047.58,0.00028054,5]
[364854651,1749275483971,-1602.25,0.00028054,5]
[364854652,1749275483980,-749.45,0.00028054,5]
[364854653,1749275483990,-961.5,0.00028054,5]
[364854654,1749275483999,-480.0,0.00028054,5]
[364854655,1749275484009,-493.15586089,0.00028054,5]
[364854656,1749275484019,-480.0,0.00028054,5]
[364854657,1749275484030,-714.3,0.00028054,5]
[364854658,1749275484039,-1392.55,0.00028054,5]
[364854659,1749275484049,-1271.75,0.00028054,5]
[364854660,1749275484059,-2908.68,0.00028054,5]
[364854661,1749275484068,-480.0,0.00028054,5]
[364854662,1749275484078,-742.56,0.00028054,5]
[364854663,1749275484088,-571.8,0.00028054,5]
[364854664,1749275484097,-1714.36,0.00028054,5]
[364854665,1749275484107,-932.26,0.00028054,5]
[364854666,1749275484116,-5571.7,0.00028054,5]
[364854667,1749275484125,-480.0,0.00028054,5]
[364854668,1749275484134,-871.56,0.00028054,5]
[364854669,1749275484143,-1450.59,0.00028054,5]
[364854670,1749275484153,-480.0,0.00028054,5]
[364854671,1749275484165,-1122.69,0.00028054,5]
[364854672,1749275484175,-1529.93,0.00028054,5]
[364854673,1749275484184,-480.0,0.00028054,5]
[364854674,1749275484194,-480.0,0.00028054,5]
[364854675,1749275484203,-5767.87,0.00028054,5]
[364854676,1749275484212,-2513.87,0.00028054,5]
[364854677,1749275484221,-480.0,0.00028054,5]
[364854678,1749275484231,-747.9,0.00028054,5]
[364854679,1749275484242,-1569.25,0.00028054,5]
[364854680,1749275484252,-480.0,0.00028054,5]
[364854681,1749275484261,-4023.49,0.00028054,5]
[364854682,1749275484271,-1345.91,0.00028054,5]
[364854683,1749275484281,-480.0,0.00028054,5]
[364854684,1749275484290,-4322.98,0.00028054,5]
[364854685,1749275484299,-480.0,0.00028054,5]
[364854686,1749275484309,-494.08,0.00028054,5]
[364854687,1749275484319,-819.83,0.00028054,5]
[364854688,1749275484328,-480.0,0.00028054,5]
[364854689,1749275484338,-687.89,0.00028054,5]
[364854690,1749275484348,-480.0,0.00028054,5]
[364854691,1749275484357,-3258.93,0.00028054,5]
[364854692,1749275484367,-480.0,0.00028054,5]
[364854693,1749275484376,-480.0,0.00028054,5]
[364854694,1749275484386,-480.0,0.00028054,5]
[364854695,1749275484396,-480.0,0.00028054,5]
[364854696,1749275484406,-480.0,0.00028054,5]
[364854697,1749275484415,-998.9,0.00028054,5]
[364854698,1749275484425,-480.0,0.00028054,5]
[364854699,1749275484435,-1521.99,0.00028054,5]
[364854700,1749275484445,-480.0,0.00028054,5]
[364854701,1749275484454,-609.92144595,0.00028054,5]
[364854702,1749275484464,-480.0,0.00028054,5]
[364854703,1749275484473,-1993.68,0.00028054,5]
[364854704,1749275484483,-633.62,0.00028054,5]
[364854705,1749275484492,-3750.22,0.00028054,5]
[364854706,1749275484501,-166.68531887,0.00028054,5]
[364854707,1749275484511,-480.0,0.00028054,5]
[364854708,1749275484520,-1168.37,0.00028054,5]
[364854709,1749275484530,-812.77,0.00028054,5]
[364854710,1749275484541,-480.0,0.00028054,5]
[364854711,1749275484550,-12535.73,0.00028054,5]
[364854712,1749275484559,-480.0,0.00028054,5]
[364854713,1749275484569,-513.52,0.00028054,5]
[364854714,1749275484578,-480.0,0.00028054,5]
[364854715,1749275484588,-1806.88,0.00028054,5]
[364854716,1749275484598,-2045.24,0.00028054,5]
[364854717,1749275484608,-521.13,0.00028054,5]
[364854718,1749275484617,-480.0,0.00028054,5]
[364854719,1749275484627,-2237.15,0.00028054,5]
[364854720,1749275484637,-480.0,0.00028054,5]
[364854721,1749275484646,-484.51,0.00028054,5]
[364854722,1749275484655,-1414.74,0.00028054,5]
[364854723,1749275484665,-719.02,0.00028054,5]
[364854724,1749275484674,-151.0,0.00028054,7]
[364854725,1749275484684,-480.0,0.00028054,5]
[364854726,1749275484693,-1721.85,0.00028054,5]
[364854727,1749275484702,-1125.11,0.00028054,5]
[364854728,1749275484711,-658.17,0.00028054,5]
[364854729,1749275484721,-1927.59,0.00028054,5]
[364854730,1749275484730,-776.34,0.00028054,5]
[364854731,1749275484739,-749.65,0.00028054,5]
[364854732,1749275484749,-697.95,0.00028054,5]
[364854733,1749275484759,-518.65,0.00028054,5]
[364854734,1749275484768,-480.0,0.00028054,5]
[364854735,1749275484779,-165.03940111,0.00028054,5]
[364854736,1749275484789,-2031.28,0.00028054,5]
[364854737,1749275484799,-1830.02,0.00028054,5]
[364854738,1749275484809,-480.0,0.00028054,5]
[364854739,1749275484818,-565.41,0.00028054,5]
[364854740,1749275484827,-757.09,0.00028054,5]
[364854741,1749275484836,-1739.86,0.00028054,5]
[364854742,1749275484846,-480.0,0.00028054,5]
[364854743,1749275484855,-886.47,0.00028054,5]
[364854744,1749275484864,-10865.99,0.00028054,5]
[364854745,1749275484874,-480.0,0.00028054,5]
[364854746,1749275484883,-480.0,0.00028054,5]
[364854747,1749275484893,-644.76,0.00028054,5]
[364854748,1749275484902,-1387.38,0.00028054,5]
[364854749,1749275484911,-1102.12,0.00028054,5]
[364854750,1749275484920,-480.0,0.00028054,5]
[364854751,1749275484930,-1440.45,0.00028054,5]
[364854752,1749275484939,-480.0,0.00028054,5]
[364854753,1749275484949,-642.18,0.00028054,5]
[364854754,1749275484958,-686.12,0.00028054,5]
[364854755,1749275484967,-480.0,0.00028054,5]
[364854756,1749275484977,-480.0,0.00028054,5]
[364854757,1749275484987,-480.0,0.00028054,5]
[364854758,1749275484997,-480.0,0.00028054,5]
[364854759,1749275485006,-510.25373153,0.00028054,5]
[364854760,1749275485015,-7442.43,0.00028054,5]
[364854761,1749275485025,-480.0,0.00028054,5]
[364854762,1749275485034,-3308.39,0.00028054,5]
[364854763,1749275485044,-480.0,0.00028054,5]
[364854764,1749275485054,-646.52,0.00028054,5]
[364854765,1749275485064,-519.60715824,0.00028054,5]
[364854766,1749275485073,-2073.8,0.00028054,5]
[364854767,1749275485083,-483.04,0.00028054,2]
[364854768,1749275485094,-480.0,0.00028054,5]
[364854769,1749275485103,-2227.22,0.00028054,5]
[364854770,1749275485113,-480.0,0.00028054,5]
[364854771,1749275485122,-16410.82,0.00028054,5]
[364854772,1749275485132,-480.0,0.00028054,5]
[364854773,1749275485141,-846.38,0.00028054,5]
[364854774,1749275485151,-1668.56,0.00028054,5]
[364854775,1749275485165,-480.0,0.00028054,2]
[364854776,1749275485174,-3612.7,0.00028054,5]
[364854777,1749275485184,-816.17,0.00028054,5]
[364854778,1749275485193,-1442.32,0.00028054,5]
[364854779,1749275485205,-557.0,0.00028059,2]
[364854780,1749275485215,-420.0,0.00028059,2]
[364854781,1749275485224,-586.40670693,0.00028071,2]
[364854782,1749275485235,-1000.0,0.00028085,7]
[364854783,1749275485245,-557.0,0.00028087,2]
[364854784,1749275485255,-420.0,0.00028087,2]
[364854785,1749275485462,-454.90789797,0.00028107,18]
[364854786,1749275485472,-580.3689748,0.00028114,2]
[364854787,1749275485483,-434.34796335,0.00028114,2]
[364854788,1749275485492,-150.0,0.00028118,2]
[364854789,1749275485503,-204.206251,0.00028119,7]
[364854790,1749275485512,-204.206251,0.00028119,7]
[364854791,1749275485522,-221.942688,0.00028119,7]
[364854792,1749275485532,-1021.3375797,0.00028121,5]
[364854793,1749275485542,-1000.0,0.00028121,5]
[364854794,1749275485553,-534.5334842,0.00028121,5]
[364854795,1749275485562,-1001.57390108,0.00028121,5]
[364854796,1749275485572,-211.0,0.0002815,2]
[364854797,1749275485583,-1445.16420011,0.00028163,2]
[364854798,1749275485592,-940.59,0.000282,2]
[364854799,1749275485602,-209.36,0.000282,2]
[364854800,1749275485613,-238.85,0.000282,2]
[364854801,1749275485623,-186.68,0.000282,2]
[364854802,1749275485633,-975.39,0.000282,2]
[364854803,1749275485643,-1213.82,0.000282,2]
[364854804,1749275485652,-16117.2656267,0.000282,2]
[364854805,1749275485663,-89999.1588261,0.000282,2]
[364854806,1749275485675,-2201.88233468,0.00028219,7]
[364854807,1749275485686,-627194.56745235,0.00028219,7]
[364854808,1749275485696,-636.82,0.00028219,5]
[364854809,1749275485706,-151.0,0.00028219,7]
[364854810,1749275485716,-151.0,0.00028219,7]
[364854811,1749275485726,-1712.784714,0.00028219,5]
[364854812,1749275485736,-151.0,0.00028219,7]
[364854813,1749275485746,-151.0,0.00028219,7]
[364854814,1749275485756,-2014.532933,0.00028219,5]
[364854815,1749275485766,-480.0,0.00028219,5]
[364854816,1749275485777,-188.377669,0.00028219,7]
[364854817,1749275485787,-151.0,0.00028219,7]
[364854818,1749275485798,-480.0,0.00028219,5]
[364854819,1749275485808,-192.062464,0.00028219,7]
[364854820,1749275485819,-480.0,0.00028219,5]
[364854821,1749275485830,-480.0,0.00028219,5]
[364854822,1749275485842,-480.0,0.00028219,5]
[364854823,1749275485854,-480.0,0.00028219,5]
[364854824,1749275485863,-226.37645751,0.00028219,5]
[364854825,1749275485875,-480.0,0.00028219,5]
[364854826,1749275485884,-151.0,0.00028219,7]
[364854827,1749275485894,-544.49828948,0.00028219,5]
[364854828,1749275485903,-151.0,0.00028219,7]
[364854829,1749275485913,-151.0,0.00028219,7]
[364854830,1749275485923,-151.0,0.00028219,7]
[364854831,1749275485932,-180.364341,0.00028219,7]
[364854832,1749275485941,-312.92015723,0.00028219,5]
[364854833,1749275485952,-480.0,0.00028219,5]
[364854834,1749275485962,-180.364341,0.00028219,7]
[364854835,1749275485972,-965.47,0.00028219,5]
[364854836,1749275485982,-171.43902,0.00028219,7]
[364854837,1749275485992,-171.43902,0.00028219,7]
[364854838,1749275486001,-480.0,0.00028219,5]
[364854839,1749275486012,-494.17376144,0.00028219,5]
[364854840,1749275486022,-500.65112787,0.00028219,5]
[364854841,1749275486031,-480.0,0.00028219,5]
[364854842,1749275486041,-480.0,0.00028219,5]
[364854843,1749275486050,-151.0,0.00028219,7]
[364854844,1749275486060,-151.0,0.00028219,7]
[364854845,1749275486072,-480.0,0.00028219,5]
[364854846,1749275486083,-480.0,0.00028219,5]
[364854847,1749275486094,-506.48906902,0.00028219,5]
[364854848,1749275486105,-779.14,0.00028219,5]
[364854849,1749275486117,-480.0,0.00028219,5]
[364854850,1749275486126,-151.0,0.00028219,7]
[364854851,1749275486135,-480.0,0.00028219,5]
[364854852,1749275486145,-151.0,0.00028219,7]
[364854853,1749275486156,-151.0,0.00028219,7]
[364854854,1749275486167,-323.06782786,0.00028219,5]
[364854855,1749275486176,-227.072186,0.00028219,7]
[364854856,1749275486185,-480.0,0.00028219,5]
[364854857,1749275486195,-480.0,0.00028219,5]
[364854858,1749275486205,-151.0,0.00028219,7]
[364854859,1749275486214,-480.0,0.00028219,5]
[364854860,1749275486224,-157.072117,0.00028219,7]
[364854861,1749275486235,-480.0,0.00028219,5]
[364854862,1749275486245,-157.072117,0.00028219,7]
[364854863,1749275486255,-480.0,0.00028219,5]
[364854864,1749275486265,-151.0,0.00028219,7]
[364854865,1749275486275,-480.0,0.00028219,5]
[364854866,1749275486285,-151.0,0.00028219,7]
[364854867,1749275486295,-163.776033,0.00028219,7]
[364854868,1749275486306,-553.1,0.00028219,5]
[364854869,1749275486318,-163.776033,0.00028219,7]
[364854870,1749275486327,-494.31641614,0.00028219,5]
[364854871,1749275486337,-480.0,0.00028219,2]
[364854872,1749275486347,-480.0,0.00028219,5]
[364854873,1749275486358,-207.0395654,0.00028219,5]
[364854874,1749275486369,-480.0,0.00028219,5]
[364854875,1749275486380,-1873.25,0.00028219,5]
[364854876,1749275486390,-302.977916,0.00028219,7]
[364854877,1749275486400,-480.0,0.00028219,5]
[364854878,1749275486409,-748.25,0.00028219,5]
[364854879,1749275486419,-302.977916,0.00028219,7]
[364854880,1749275486430,-480.0,0.00028219,5]
[364854881,1749275486439,-891.05,0.00028219,5]
[364854882,1749275486449,-807.46,0.00028219,5]
[364854883,1749275486460,-503.23426074,0.00028219,5]
[364854884,1749275486471,-480.0,0.00028219,5]
[364854885,1749275486481,-480.0,0.00028219,5]
[364854886,1749275486490,-480.0,0.00028219,5]
[364854887,1749275486500,-152.168168,0.00028219,7]
[364854888,1749275486511,-480.0,0.00028219,5]
[364854889,1749275486521,-592.7,0.00028219,5]
[364854890,1749275486532,-511.82,0.00028219,5]
[364854891,1749275486541,-488.56,0.00028219,5]
[364854892,1749275486550,-151.0,0.00028219,7]
[364854893,1749275486560,-152.168168,0.00028219,7]
[364854894,1749275486569,-1115.25,0.00028219,5]
[364854895,1749275486578,-1363.86,0.00028219,5]
[364854896,1749275486588,-504.56,0.00028219,5]
[364854897,1749275486598,-517.82010398,0.00028219,5]
[364854898,1749275486608,-480.0,0.00028219,5]
[364854899,1749275486617,-774.18,0.00028219,5]
[364854900,1749275486627,-422.064083,0.00028219,7]
[364854901,1749275486637,-422.064083,0.00028219,7]
[364854902,1749275486646,-480.0,0.00028219,5]
[364854903,1749275486655,-480.0,0.00028219,5]
[364854904,1749275486664,-480.0,0.00028219,5]
[364854905,1749275486673,-598.1,0.00028219,5]
[364854906,1749275486683,-692.39,0.00028219,5]
[364854907,1749275486692,-480.0,0.00028219,5]
[364854908,1749275486702,-151.0,0.00028219,7]
[364854909,1749275486711,-265.195417,0.00028219,7]
[364854910,1749275486721,-585.52,0.00028219,5]
[364854911,1749275486730,-1003.36,0.00028219,5]
[364854912,1749275486740,-265.195417,0.00028219,7]
[364854913,1749275486750,-480.0,0.00028219,5]
[364854914,1749275486759,-480.0,0.00028219,5]
[364854915,1749275486768,-480.0,0.00028219,5]
[364854916,1749275486779,-480.0,0.00028219,5]
[364854917,1749275486788,-528.11,0.00028219,5]
[364854918,1749275486797,-480.0,0.00028219,5]
[364854919,1749275486806,-1090.43,0.00028219,5]
[364854920,1749275486816,-481.75279724,0.00028219,5]
[364854921,1749275486826,-480.0,0.00028219,5]
[364854922,1749275486835,-211.937417,0.00028219,7]
[364854923,1749275486844,-480.0,0.00028219,5]
[364854924,1749275486853,-185.85302686,0.00028219,5]
[364854925,1749275486863,-845.75,0.00028219,5]
[364854926,1749275486872,-151.0,0.00028219,7]
[364854927,1749275486881,-480.0,0.00028219,5]
[364854928,1749275486891,-505.5181524,0.00028219,5]
[364854929,1749275486900,-1268.78,0.00028219,5]
[364854930,1749275486910,-705.95,0.00028219,5]
[364854931,1749275486919,-480.0,0.00028219,5]
[364854932,1749275486928,-480.0,0.00028219,5]
[364854933,1749275486937,-667.85,0.00028219,5]
[364854934,1749275486947,-513.29225079,0.00028219,5]
[364854935,1749275486956,-156.782811,0.00028219,7]
[364854936,1749275486965,-525.14,0.00028219,5]
[364854937,1749275486975,-630.65,0.00028219,5]
[364854938,1749275486984,-556.44,0.00028219,5]
[364854939,1749275486994,-156.782811,0.00028219,7]
[364854940,1749275487003,-480.0,0.00028219,5]
[364854941,1749275487012,-865.84,0.00028219,5]
[364854942,1749275487021,-480.0,0.00028219,5]
[364854943,1749275487032,-987.96,0.00028219,5]
[364854944,1749275487042,-1221.810892,0.00028219,7]
[364854945,1749275487051,-683.29,0.00028219,5]
[364854946,1749275487060,-1221.810892,0.00028219,7]
[364854947,1749275487070,-487.75117206,0.00028219,5]
[364854948,1749275487079,-983.97,0.00028219,5]
[364854949,1749275487089,-480.0,0.00028219,5]
[364854950,1749275487098,-480.0,0.00028219,5]
[364854951,1749275487107,-480.0,0.00028219,5]
[364854952,1749275487117,-811.35,0.00028219,5]
[364854953,1749275487126,-480.0,0.00028219,5]
[364854954,1749275487135,-480.0,0.00028219,5]
[364854955,1749275487145,-208.07743202,0.00028219,5]
[364854956,1749275487154,-480.0,0.00028219,5]
[364854957,1749275487169,-994.12,0.00028219,5]
[364854958,1749275487179,-549.5,0.00028219,5]
[364854959,1749275487189,-151.0,0.00028219,7]
[364854960,1749275487198,-586.32,0.00028219,5]
[364854961,1749275487207,-1161.87,0.00028219,5]
[364854962,1749275487218,-480.0,0.00028219,5]
[364854963,1749275487228,-480.0,0.00028219,5]
[364854964,1749275487239,-480.0,0.00028219,5]
[364854965,1749275487251,-480.0,0.00028219,5]
[364854966,1749275487261,-480.0,0.00028219,5]
[364854967,1749275487272,-531.17,0.00028219,5]
[364854968,1749275487282,-480.0,0.00028219,5]
[364854969,1749275487292,-1154.57,0.00028219,5]
[364854970,1749275487303,-624.96,0.00028219,5]
[364854971,1749275487313,-706.88,0.00028219,5]
[364854972,1749275487324,-480.0,0.00028219,5]
[364854973,1749275487333,-480.0,0.00028219,5]
[364854974,1749275487343,-800.86,0.00028219,5]
[364854975,1749275487352,-480.0,0.00028219,5]
[364854976,1749275487362,-607.83,0.00028219,5]
[364854977,1749275487371,-754.4,0.00028219,5]
[364854978,1749275487381,-480.0,0.00028219,5]
[364854979,1749275487391,-1444.88,0.00028219,5]
[364854980,1749275487400,-480.0,0.00028219,5]
[364854981,1749275487410,-1068.78,0.00028219,5]
[364854982,1749275487419,-480.0,0.00028219,5]
[364854983,1749275487429,-722.25,0.00028219,5]
[364854984,1749275487438,-162.037718,0.00028219,7]
[364854985,1749275487447,-480.0,0.00028219,5]
[364854986,1749275487457,-162.037718,0.00028219,7]
[364854987,1749275487466,-658.72,0.00028219,5]
[364854988,1749275487476,-1932.61,0.00028219,5]
[364854989,1749275487485,-249.534353,0.00028219,7]
[364854990,1749275487495,-480.0,0.00028219,5]
[364854991,1749275487505,-249.534353,0.00028219,7]
[364854992,1749275487514,-480.0,0.00028219,5]
[364854993,1749275487524,-814.9,0.00028219,5]
[364854994,1749275487534,-943.75,0.00028219,5]
[364854995,1749275487544,-480.0,0.00028219,5]
[364854996,1749275487553,-220.56707478,0.00028219,5]
[364854997,1749275487563,-743.803236,0.00028219,7]
[364854998,1749275487572,-480.0,0.00028219,5]
[364854999,1749275487582,-743.803236,0.00028219,7]
[364855000,1749275487593,-480.0,0.00028219,5]
[364855001,1749275487602,-576.73,0.00028219,5]
[364855002,1749275487612,-748.49,0.00028219,5]
[364855003,1749275487622,-151.0,0.00028219,7]
[364855004,1749275487631,-1442.29,0.00028219,5]
[364855005,1749275487641,-151.0,0.00028219,7]
[364855006,1749275487651,-480.0,0.00028219,5]
[364855007,1749275487662,-480.0,0.00028219,5]
[364855008,1749275487671,-853.62,0.00028219,5]
[364855009,1749275487680,-480.0,0.00028219,5]
[364855010,1749275487690,-480.0,0.00028219,5]
[364855011,1749275487699,-151.0,0.00028219,7]
[364855012,1749275487708,-480.0,0.00028219,5]
[364855013,1749275487717,-949.58,0.00028219,5]
[364855014,1749275487727,-842.89,0.00028219,5]
[364855015,1749275487737,-222.15729077,0.00028219,5]
[364855016,1749275487746,-1000.0,0.00028219,5]
[364855017,1749275487756,-891.66,0.00028219,5]
[364855018,1749275487765,-169.15025998,0.00028219,5]
[364855019,1749275487775,-480.0,0.00028219,5]
[364855020,1749275487785,-293.517866,0.00028219,7]
[364855021,1749275487795,-916.35,0.00028219,5]
[364855022,1749275487805,-293.517866,0.00028219,7]
[364855023,1749275487814,-289.758248,0.00028219,7]
[364855024,1749275487823,-151.0,0.00028219,7]
[364855025,1749275487832,-289.758248,0.00028219,7]
[364855026,1749275487841,-6191.071096,0.00028219,7]
[364855027,1749275487850,-488.99804382,0.00028219,5]
[364855028,1749275487860,-480.0,0.00028219,5]
[364855029,1749275487870,-923.96,0.00028219,5]
[364855030,1749275487879,-6191.071096,0.00028219,7]
[364855031,1749275487889,-1066.78,0.00028219,5]
[364855032,1749275487899,-765.06,0.00028219,5]
[364855033,1749275487908,-480.0,0.00028219,5]
[364855034,1749275487917,-589.04,0.00028219,5]
[364855035,1749275487926,-943.26,0.00028219,5]
[364855036,1749275487936,-480.0,0.00028219,5]
[364855037,1749275487945,-618.743293,0.00028219,7]
[364855038,1749275487954,-871.81,0.00028219,5]
[364855039,1749275487963,-480.0,0.00028219,5]
[364855040,1749275487973,-618.743293,0.00028219,7]
[364855041,1749275487983,-152.752099,0.00028219,7]
[364855042,1749275487993,-480.0,0.00028219,5]
[364855043,1749275488002,-480.0,0.00028219,5]
[364855044,1749275488012,-1182.54,0.00028219,5]
[364855045,1749275488021,-480.0,0.00028219,5]
[364855046,1749275488031,-1648.23,0.00028219,5]
[364855047,1749275488041,-1744.26,0.00028219,5]
[364855048,1749275488051,-2996.31,0.00028219,5]
[364855049,1749275488060,-594.24,0.00028219,5]
[364855050,1749275488070,-1656.96,0.00028219,5]
[364855051,1749275488079,-480.0,0.00028219,5]
[364855052,1749275488089,-581.99,0.00028219,5]
[364855053,1749275488099,-480.0,0.00028219,5]
[364855054,1749275488108,-151.0,0.00028219,7]
[364855055,1749275488118,-4307.55,0.00028219,5]
[364855056,1749275488127,-629.18,0.00028219,5]
[364855057,1749275488137,-358.024047,0.00028219,7]
[364855058,1749275488147,-593.81,0.00028219,5]
[364855059,1749275488156,-594.43,0.00028219,5]
[364855060,1749275488169,-798.07,0.00028219,5]
[364855061,1749275488179,-358.024047,0.00028219,7]
[364855062,1749275488188,-480.0,0.00028219,5]
[364855063,1749275488199,-158.674,0.00028219,7]
[364855064,1749275488208,-831.81,0.00028219,5]
[364855065,1749275488218,-5383.27,0.00028219,5]
[364855066,1749275488228,-511.75752596,0.00028219,5]
[364855067,1749275488240,-2090.28,0.00028219,5]
[364855068,1749275488251,-1267.21,0.00028219,5]
[364855069,1749275488261,-10955.06,0.00028219,5]
[364855070,1749275488270,-480.0,0.00028219,5]
[364855071,1749275488280,-959.52,0.00028219,5]
[364855072,1749275488290,-5511.22,0.00028219,5]
[364855073,1749275488299,-7087.11,0.00028219,5]
[364855074,1749275488308,-480.0,0.00028219,5]
[364855075,1749275488317,-2433.15,0.00028219,5]
[364855076,1749275488328,-151.0,0.00028219,7]
[364855077,1749275488338,-480.0,0.00028219,5]
[364855078,1749275488348,-480.0,0.00028219,5]
[364855079,1749275488358,-480.0,0.00028219,5]
[364855080,1749275488367,-1105.102924,0.00028219,7]
[364855081,1749275488377,-800.24,0.00028219,5]
[364855082,1749275488387,-1027.33,0.00028219,5]
[364855083,1749275488397,-1086.55,0.00028219,5]
[364855084,1749275488406,-1105.102924,0.00028219,7]
[364855085,1749275488416,-1813.57,0.00028219,5]
[364855086,1749275488427,-1367.55,0.00028219,5]
[364855087,1749275488437,-480.0,0.00028219,5]
[364855088,1749275488447,-1078.29,0.00028219,5]